fUSD/lending_fUSD_20240519
["ID","MTS","AMOUNT","RATE_DAILY","PERIOD"]
[327489511,1716123039679,-522.59294761,0.00026645,2]
[327489512,1716123039688,-523.08916,0.00026645,2]
[327489513,1716123039698,-500.0,0.00026645,2]
[327489514,1716123039709,-500.0,0.00026645,2]
[327489515,1716123039719,-500.0,0.00026645,2]
[327489516,1716123039729,-500.0,0.00026645,2]
[327489517,1716123039739,-500.0,0.00026645,2]
[327489518,1716123039748,-500.0,0.00026645,2]
[327489519,1716123039758,-500.0,0.00026645,2]
[327489520,1716123039768,-596.49,0.00026645,2]
[327489521,1716123039778,-500.0,0.00026645,7]
[327489522,1716123039787,-500.0,0.00026645,2]
[327489523,1716123039797,-500.0,0.00026645,2]
[327489524,1716123039807,-585.41,0.00026645,2]
[327489525,1716123039817,-521.77812428,0.00026645,2]
[327489526,1716123039827,-500.0,0.00026645,2]
[327489527,1716123039836,-500.0,0.00026645,2]
[327489528,1716123039845,-500.0,0.00026645,2]
[327489529,1716123039855,-500.0,0.00026645,2]
[327489530,1716123039864,-500.0,0.00026645,2]
[327489531,1716123039874,-500.0,0.00026645,2]
[327489532,1716123039883,-500.0,0.00026645,2]
[327489533,1716123039893,-779.71,0.00026645,2]
[327489534,1716123039902,-500.0,0.00026645,2]
[327489535,1716123039912,-2180.14,0.00026645,2]
[327489536,1716123039922,-500.0,0.00026645,2]
[327489538,1716123039931,-514.86683465,0.00026645,2]
[327489540,1716123039941,-561.73550545,0.00026645,2]
[327489542,1716123039951,-500.0,0.00026645,2]
[327489544,1716123039961,-500.0,0.00026645,2]
[327489545,1716123039970,-500.0,0.00026645,2]
[327489546,1716123039979,-500.0,0.00026645,2]
[327489548,1716123039989,-500.0,0.00026645,2]
[327489550,1716123039998,-500.0,0.00026645,2]
[327489552,1716123040007,-500.0,0.00026645,2]
[327489554,1716123040016,-517.79,0.00026645,2]
[327489555,1716123040025,-500.0,0.00026645,2]
[327489556,1716123040035,-814.04,0.00026645,2]
[327489557,1716123040046,-500.0,0.00026645,2]
[327489558,1716123040056,-500.0,0.00026645,2]
[327489559,1716123040066,-500.0,0.00026645,2]
[327489560,1716123040077,-500.0,0.00026645,2]
[327489561,1716123040088,-500.0,0.00026645,2]
[327489562,1716123040098,-500.0,0.00026645,2]
[327489563,1716123040109,-500.0,0.00026645,2]
[327489564,1716123040119,-508.99492557,0.00026645,2]
[327489565,1716123040128,-500.0,0.00026645,2]
[327489566,1716123040138,-500.0,0.00026645,2]
[327489567,1716123040147,-512.48001006,0.00026645,2]
[327489568,1716123040157,-500.0,0.00026645,2]
[327489569,1716123040166,-500.0,0.00026645,2]
[327489570,1716123040175,-500.0,0.00026645,2]
[327489571,1716123040185,-500.0,0.00026645,2]
[327489572,1716123040195,-500.0,0.00026645,2]
[327489573,1716123040206,-500.0,0.00026645,2]
[327489574,1716123040216,-711.16,0.00026645,2]
[327489575,1716123040225,-500.0,0.00026645,2]
[327489576,1716123040235,-500.0,0.00026645,2]
[327489577,1716123040244,-500.0,0.00026645,2]
[327489578,1716123040254,-500.0,0.00026645,2]
[327489579,1716123040263,-500.0,0.00026645,2]
[327489580,1716123040272,-500.0,0.00026645,2]
[327489581,1716123040282,-500.0,0.00026645,2]
[327489582,1716123040291,-500.0,0.00026645,2]
[327489583,1716123040301,-500.0,0.00026645,2]
[327489584,1716123040311,-500.0,0.00026645,2]
[327489585,1716123040320,-500.0,0.00026645,2]
[327489586,1716123040330,-500.0,0.00026645,2]
[327489587,1716123040339,-500.0,0.00026645,2]
[327489588,1716123040349,-680.75,0.00026645,2]
[327489589,1716123040358,-549.89926876,0.00026645,2]
[327489590,1716123040368,-595.89,0.00026645,2]
[327489591,1716123040377,-500.0,0.00026645,2]
[327489592,1716123040387,-500.0,0.00026645,2]
[327489593,1716123040397,-612.12,0.00026645,2]
[327489594,1716123040411,-500.0,0.00026645,2]
[327489595,1716123040424,-500.0,0.00026645,2]
[327489596,1716123040434,-500.0,0.00026645,2]
[327489597,1716123040444,-503.84816167,0.00026645,2]
[327489598,1716123040458,-500.0,0.00026645,2]
[327489599,1716123040468,-500.0,0.00026645,2]
[327489600,1716123040477,-500.0,0.00026645,2]
[327489601,1716123040486,-513.89801604,0.00026645,2]
[327489602,1716123040496,-500.0,0.00026645,2]
[327489603,1716123040505,-500.0,0.00026645,2]
[327489604,1716123040515,-509.9364995,0.00026645,2]
[327489605,1716123040525,-500.0,0.00026645,2]
[327489606,1716123040534,-500.0,0.00026645,2]
[327489607,1716123040544,-500.0,0.00026645,2]
[327489608,1716123040554,-822.21,0.00026645,2]
[327489609,1716123040564,-500.0,0.00026645,2]
[327489610,1716123040574,-526.085396,0.00026645,2]
[327489611,1716123040584,-500.0,0.00026645,2]
[327489612,1716123040593,-1155.03,0.00026645,2]
[327489613,1716123040603,-500.0,0.00026645,2]
[327489614,1716123040613,-500.0,0.00026645,2]
[327489615,1716123040622,-500.0,0.00026645,2]
[327489616,1716123040632,-521.02351845,0.00026645,2]
[327489617,1716123040642,-514.02167389,0.00026645,2]
[327489618,1716123040652,-500.0,0.00026645,2]
[327489619,1716123040662,-1248.16,0.00026645,2]
[327489620,1716123040671,-151.686478,0.00026645,7]
[327489621,1716123040681,-522.59695139,0.00026645,2]
[327489622,1716123040691,-152.416016,0.00026645,7]
[327489623,1716123040701,-594.24358151,0.00026645,2]
[327489624,1716123040712,-739.61,0.00026645,2]
[327489625,1716123040722,-500.0,0.00026645,2]
[327489626,1716123040732,-2181.66,0.00026645,2]
[327489627,1716123040743,-500.0,0.00026645,2]
[327489628,1716123040753,-531.38625742,0.00026645,2]
[327489629,1716123040763,-500.0,0.00026645,2]
[327489630,1716123040773,-500.0,0.00026645,2]
[327489631,1716123040783,-500.0,0.00026645,2]
[327489632,1716123040793,-1406.8,0.00026645,2]
[327489633,1716123040803,-500.0,0.00026645,2]
[327489634,1716123040812,-3796.14,0.00026645,2]
[327489635,1716123040822,-500.0,0.00026645,2]
[327489636,1716123040832,-595.40861442,0.00026645,2]
[327489637,1716123040842,-500.0,0.00026645,2]
[327489638,1716123040851,-151.0,0.00026645,7]
[327489639,1716123040861,-500.0,0.00026645,2]
[327489640,1716123040871,-151.0,0.00026645,7]
[327489641,1716123040881,-2785.37,0.00026645,2]
[327489642,1716123040890,-1639.41,0.00026645,2]
[327489643,1716123040900,-500.0,0.00026645,2]
[327489644,1716123040910,-500.0,0.00026645,2]
[327489645,1716123041078,-500.0,0.00026645,2]
[327489646,1716123041088,-286.868475,0.00026645,7]
[327489647,1716123041097,-151.0,0.00026645,7]
[327489648,1716123041106,-500.0,0.00026645,2]
[327489649,1716123041116,-151.0,0.00026645,7]
[327489650,1716123041125,-500.0,0.00026645,2]
[327489651,1716123041134,-286.868475,0.00026645,7]
[327489652,1716123041143,-151.0,0.00026645,7]
[327489653,1716123041152,-15523.25,0.00026645,2]
[327489654,1716123041162,-500.0,0.00026645,2]
[327489655,1716123041171,-500.0,0.00026645,2]
[327489656,1716123041180,-500.0,0.00026645,2]
[327489657,1716123041189,-151.0,0.00026645,7]
[327489658,1716123041199,-500.0,0.00026645,2]
[327489659,1716123041209,-500.0,0.00026645,2]
[327489660,1716123041218,-151.0,0.00026645,7]
[327489661,1716123041227,-917.2,0.00026645,2]
[327489662,1716123041237,-500.0,0.00026645,2]
[327489663,1716123041247,-500.0,0.00026645,2]
[327489664,1716123041256,-500.0,0.00026645,2]
[327489665,1716123041267,-152.664773,0.00026645,7]
[327489666,1716123041277,-500.0,0.00026645,2]
[327489667,1716123041286,-500.0,0.00026645,2]
[327489668,1716123041296,-500.0,0.00026645,2]
[327489669,1716123041305,-506.36787445,0.00026645,2]
[327489670,1716123041315,-503.8322294,0.00026645,2]
[327489671,1716123041324,-3107.93,0.00026645,2]
[327489672,1716123041334,-215.010688,0.00026645,7]
[327489673,1716123041343,-151.0,0.00026645,7]
[327489674,1716123041353,-151.0,0.00026645,7]
[327489675,1716123041362,-151.0,0.00026645,7]
[327489676,1716123041373,-547.73034137,0.00026645,2]
[327489677,1716123041382,-500.0,0.00026645,2]
[327489678,1716123041392,-168.005514,0.00026645,7]
[327489679,1716123041401,-534.7153391,0.00026645,2]
[327489680,1716123041416,-151.0,0.00026645,7]
[327489681,1716123041426,-168.005514,0.00026645,7]
[327489682,1716123041435,-153.013944,0.00026645,7]
[327489683,1716123041444,-168.005514,0.00026645,7]
[327489684,1716123041456,-151.0,0.00026645,7]
[327489685,1716123041465,-151.0,0.00026645,7]
[327489686,1716123041474,-500.0,0.00026645,2]
[327489687,1716123041485,-155.435469,0.00026645,7]
[327489688,1716123041495,-515.41851068,0.00026645,2]
[327489689,1716123041504,-168.005514,0.00026645,7]
[327489690,1716123041514,-507.79,0.00026645,2]
[327489691,1716123041524,-168.005514,0.00026645,7]
[327489692,1716123041534,-168.005514,0.00026645,7]
[327489693,1716123041543,-500.0,0.00026645,2]
[327489694,1716123041552,-500.0,0.00026645,2]
[327489695,1716123041561,-500.0,0.00026645,2]
[327489696,1716123041571,-439.83790936,0.00026645,2]
[327489697,1716123041580,-151.0,0.00026645,7]
[327489698,1716123041589,-151.0,0.00026645,7]
[327489699,1716123041599,-500.0,0.00026645,2]
[327489700,1716123041608,-1061.03,0.00026646,2]
[327489701,1716123041617,-500.0,0.00026646,2]
[327489702,1716123041627,-500.0,0.00026646,2]
[327489703,1716123041636,-522.98,0.00026646,2]
[327489704,1716123041645,-500.0,0.00026646,2]
[327489705,1716123041654,-500.0,0.00026646,2]
[327489706,1716123041664,-151.0,0.00026646,7]
[327489707,1716123041672,-151.0,0.00026646,7]
[327489708,1716123041681,-1946.42,0.00026646,2]
[327489709,1716123041690,-151.0,0.00026646,7]
[327489710,1716123041699,-1517.47,0.00026646,2]
[327489711,1716123041709,-151.0,0.00026646,7]
[327489712,1716123041718,-548.22,0.00026646,2]
[327489713,1716123041727,-593.34,0.00026646,2]
[327489714,1716123041736,-151.0,0.00026646,7]
[327489715,1716123041745,-151.0,0.00026646,7]
[327489716,1716123041754,-151.0,0.00026646,7]
[327489717,1716123041763,-2206.73,0.00026646,2]
[327489718,1716123041772,-151.0,0.00026646,7]
[327489719,1716123041782,-878.77,0.00026646,2]
[327489720,1716123041791,-1143.1,0.00026646,2]
[327489721,1716123041801,-151.0,0.00026646,7]
[327489722,1716123041810,-1509.486727,0.00026646,7]
[327489723,1716123041819,-151.0,0.00026646,7]
[327489724,1716123041829,-1509.486727,0.00026646,7]
[327489725,1716123041839,-873.05,0.00026646,2]
[327489726,1716123041848,-151.0,0.00026646,7]
[327489727,1716123041858,-906.99,0.00026646,2]
[327489728,1716123041867,-516.859723,0.00026646,7]
[327489729,1716123041877,-151.0,0.00026646,7]
[327489730,1716123041886,-516.859723,0.00026646,7]
[327489731,1716123041896,-151.87885,0.00026646,7]
[327489732,1716123041905,-1107.18,0.00026646,2]
[327489733,1716123041915,-151.0,0.00026646,7]
[327489734,1716123041924,-151.0,0.00026646,7]
[327489735,1716123041934,-151.0,0.00026646,7]
[327489736,1716123041943,-188.147517,0.00026646,7]
[327489737,1716123041952,-2878.77,0.00026646,2]
[327489738,1716123041963,-188.147517,0.00026646,7]
[327489739,1716123041972,-500.0,0.00026646,2]
[327489740,1716123041981,-854.19,0.00026646,2]
[327489741,1716123041991,-151.0,0.00026646,7]
[327489742,1716123042000,-151.0,0.00026646,7]
[327489743,1716123042010,-286.868475,0.00026646,7]
[327489744,1716123042019,-4537.69,0.00026646,2]
[327489745,1716123042029,-272.28412,0.00026646,7]
[327489746,1716123042038,-151.0,0.00026646,7]
[327489747,1716123042047,-286.868475,0.00026646,7]
[327489748,1716123042056,-158.011566,0.00026646,7]
[327489749,1716123042065,-546.74,0.00026646,2]
[327489750,1716123042075,-151.0,0.00026646,7]
[327489751,1716123042083,-151.0,0.00026646,7]
[327489752,1716123042093,-168.005514,0.00026646,7]
[327489753,1716123042102,-168.005514,0.00026646,7]
[327489754,1716123042111,-200.965707,0.00026647,7]
[327489755,1716123042122,-151.0,0.00026647,7]
[327489756,1716123042132,-151.0,0.00026647,7]
[327489757,1716123042141,-314.620892,0.00026647,7]
[327489758,1716123042150,-151.0,0.00026647,7]
[327489759,1716123042160,-151.0,0.00026647,7]
[327489760,1716123042169,-314.620892,0.00026647,7]
[327489761,1716123042179,-151.0,0.00026647,7]
[327489762,1716123042188,-154.025365,0.00026647,7]
[327489763,1716123042197,-151.0,0.00026647,7]
[327489764,1716123042209,-151.0,0.00026647,7]
[327489765,1716123042219,-151.0,0.00026647,7]
[327489766,1716123042228,-151.0,0.00026647,7]
[327489767,1716123042238,-151.0,0.00026647,7]
[327489768,1716123042247,-151.0,0.00026647,7]
[327489769,1716123042256,-151.0,0.00026647,7]
[327489770,1716123042266,-151.0,0.00026647,7]
[327489771,1716123042275,-151.0,0.00026647,7]
[327489772,1716123042284,-151.0,0.00026647,7]
[327489773,1716123042294,-151.0,0.00026647,7]
[327489774,1716123042303,-250.261772,0.00026647,7]
[327489775,1716123042312,-250.261772,0.00026647,7]
[327489776,1716123042321,-151.0,0.00026647,7]
[327489777,1716123042331,-155.506005,0.00026647,7]
[327489778,1716123042340,-151.0,0.00026647,7]
[327489779,1716123042349,-151.0,0.00026647,7]
[327489780,1716123042358,-151.0,0.00026647,7]
[327489781,1716123042367,-151.0,0.00026647,7]
[327489782,1716123042376,-152.461015,0.00026647,7]
[327489783,1716123042386,-151.0,0.00026647,7]
[327489784,1716123042395,-151.0,0.00026647,7]
[327489785,1716123042405,-182.392427,0.00026647,7]
[327489786,1716123042414,-151.0,0.00026647,7]
[327489787,1716123042427,-151.0,0.00026647,7]
[327489788,1716123042437,-151.0,0.00026647,7]
[327489789,1716123042446,-184.37135,0.00026647,7]
[327489790,1716123042456,-151.0,0.00026647,7]
[327489791,1716123042467,-151.792916,0.00026647,7]
[327489792,1716123042477,-151.0,0.00026647,7]
[327489793,1716123042486,-338.36919,0.00026647,7]
[327489794,1716123042496,-338.36919,0.00026647,7]
[327489795,1716123042506,-500.0,0.00026689,2]
[327489796,1716123042515,-500.0,0.00026689,2]
[327489797,1716123042524,-500.0,0.00026689,2]
[327489798,1716123042534,-500.0,0.00026689,2]
[327489799,1716123042543,-500.0,0.00026689,2]
[327489800,1716123042552,-500.0,0.00026689,2]
[327489801,1716123042562,-500.0,0.00026689,2]
[327489802,1716123042571,-500.0,0.00026689,2]
[327489803,1716123042580,-500.0,0.00026689,2]
[327489804,1716123042589,-500.0,0.00026689,2]
[327489805,1716123042598,-516.34279613,0.00026689,2]
[327489806,1716123042608,-237.64135596,0.00026689,2]
[327489807,1716123042617,-509.93213775,0.00026689,2]
[327489808,1716123042627,-500.0,0.00026689,2]
[327489809,1716123042636,-518.61533643,0.00026689,2]
[327489810,1716123042645,-500.0,0.00026689,2]
[327489811,1716123042654,-515.22531814,0.00026689,2]
[327489812,1716123042664,-565.20965575,0.00026689,2]
[327489813,1716123042673,-500.0,0.00026689,2]
[327489814,1716123042683,-500.0,0.00026689,2]
[327489815,1716123042692,-531.09003102,0.00026689,2]
[327489816,1716123042701,-500.0,0.00026689,2]
[327489817,1716123042712,-537.68519637,0.00026689,2]
[327489818,1716123042721,-2935.70744807,0.00026689,2]
[327489819,1716123042730,-500.0,0.00026689,2]
[327489820,1716123042740,-500.0,0.00026689,2]
[327489821,1716123042750,-500.0,0.00026689,2]
[327489822,1716123042760,-533.33872707,0.00026689,2]
[327489823,1716123042770,-522.18641626,0.00026689,2]
[327489824,1716123042781,-500.0,0.00026689,2]
[327489825,1716123042792,-500.0,0.00026689,2]
[327489826,1716123042803,-500.0,0.00026689,2]
[327489827,1716123042814,-500.0,0.00026689,2]
[327489828,1716123042825,-500.0,0.00026689,2]
[327489829,1716123042836,-500.0,0.00026689,2]
[327489830,1716123042847,-500.0,0.00026689,2]
[327489831,1716123042857,-500.0,0.00026689,2]
[327489832,1716123042866,-531.75360199,0.00026689,2]
[327489833,1716123042877,-530.30375638,0.00026689,2]
[327489834,1716123042891,-500.0,0.00026689,2]
[327489835,1716123042901,-528.25802581,0.00026689,2]
[327489836,1716123042911,-500.0,0.00026689,2]
[327489837,1716123042921,-500.0,0.00026689,2]
[327489838,1716123042931,-526.95558886,0.00026689,2]
[327489839,1716123042941,-500.0,0.00026689,2]
[327489840,1716123042950,-305.83202275,0.00026689,2]
[327489841,1716123042961,-500.0,0.00026689,2]
[327489842,1716123042971,-527.74370003,0.00026689,2]
[327489843,1716123042980,-500.0,0.00026689,2]
[327489844,1716123042991,-500.0,0.00026689,2]
[327489845,1716123043000,-500.0,0.00026689,2]
[327489846,1716123043010,-525.32964914,0.00026689,2]
[327489847,1716123043020,-790.45,0.00026689,2]
[327489848,1716123043030,-500.0,0.00026689,2]
[327489849,1716123043044,-500.0,0.00026689,2]
[327489850,1716123043053,-468.49927895,0.00026689,2]
[327489851,1716123043063,-500.0,0.00026689,2]
[327489852,1716123043072,-500.0,0.00026689,2]
[327489853,1716123043082,-500.0,0.00026689,2]
[327489854,1716123043091,-500.0,0.00026689,2]
[327489855,1716123043100,-500.0,0.00026689,2]
[327489856,1716123043110,-500.0,0.00026689,2]
[327489857,1716123043119,-320.37608788,0.00026689,2]
[327489858,1716123043128,-210.57443209,0.00026689,2]
[327489859,1716123043137,-500.0,0.00026689,2]
[327489860,1716123043146,-500.0,0.00026689,2]
[327489861,1716123043155,-534.48803599,0.00026689,2]
[327489862,1716123043165,-500.0,0.00026689,2]
[327489863,1716123043177,-500.0,0.00026689,2]
[327489864,1716123043186,-533.36518817,0.00026689,2]
[327489865,1716123043195,-500.0,0.00026689,2]
[327489866,1716123043205,-500.0,0.00026689,2]
[327489867,1716123043214,-500.0,0.00026689,2]
[327489868,1716123043224,-500.0,0.00026689,2]
[327489869,1716123043233,-500.0,0.00026689,2]
[327489870,1716123043243,-516.73289698,0.00026689,2]
[327489871,1716123043252,-500.0,0.00026689,2]
[327489872,1716123043261,-450.89688275,0.00026689,2]
[327489873,1716123043270,-500.0,0.00026689,2]
[327489874,1716123043279,-504.02308296,0.00026689,2]
[327489875,1716123043288,-500.0,0.00026689,2]
[327489876,1716123043298,-518.95859796,0.00026689,2]
[327489877,1716123043308,-500.0,0.00026689,2]
[327489878,1716123043317,-151.0,0.00026689,7]
[327489879,1716123043326,-500.0,0.00026689,2]
[327489880,1716123043336,-535.82376703,0.00026689,2]
[327489881,1716123043345,-500.0,0.00026689,2]
[327489882,1716123043355,-508.67555995,0.00026689,2]
[327489883,1716123043365,-500.0,0.00026689,2]
[327489884,1716123043374,-506.61675779,0.00026689,2]
[327489885,1716123043384,-500.0,0.00026689,2]
[327489886,1716123043394,-500.0,0.00026689,2]
[327489887,1716123043404,-511.33020795,0.00026689,2]
[327489888,1716123043419,-508.92412029,0.00026689,2]
[327489889,1716123043429,-500.0,0.00026689,2]
[327489890,1716123043438,-500.0,0.00026689,2]
[327489891,1716123043448,-506.68634104,0.00026689,2]
[327489892,1716123043460,-151.0,0.00026689,7]
[327489893,1716123043470,-150.0,0.00026689,2]
[327489894,1716123043480,-500.0,0.00026689,2]
[327489895,1716123043490,-545.50819437,0.00026689,2]
[327489896,1716123043500,-151.0,0.00026689,7]
[327489897,1716123043510,-500.0,0.00026689,2]
[327489898,1716123043520,-151.0,0.00026689,7]
[327489899,1716123043530,-151.258786,0.00026689,7]
[327489900,1716123043540,-529.35704394,0.00026689,2]
[327489901,1716123043550,-151.0,0.00026689,7]
[327489902,1716123043561,-500.0,0.00026689,2]
[327489903,1716123043571,-510.59736024,0.00026689,2]
[327489904,1716123043581,-151.0,0.00026689,7]
[327489905,1716123043591,-500.0,0.00026689,2]
[327489906,1716123043601,-500.0,0.00026689,2]
[327489907,1716123043611,-534.883466,0.00026689,2]
[327489908,1716123043621,-394.27774839,0.00026689,2]
[327489909,1716123043631,-519.24322873,0.00026689,2]
[327489910,1716123043640,-151.0,0.00026689,7]
[327489911,1716123043650,-1076.78,0.00026689,2]
[327489912,1716123043659,-500.0,0.00026689,2]
[327489913,1716123043668,-151.0,0.00026689,7]
[327489914,1716123043678,-500.0,0.00026689,2]
[327489916,1716123043687,-526.32732597,0.00026689,2]
[327489917,1716123043697,-500.0,0.00026689,2]
[327489918,1716123043706,-530.62727412,0.00026689,2]
[327489919,1716123043717,-502.90639466,0.00026689,2]
[327489920,1716123043727,-500.0,0.00026689,2]
[327489921,1716123043738,-500.0,0.00026689,2]
[327489922,1716123043748,-524.13043377,0.00026689,2]
[327489923,1716123043758,-500.0,0.00026689,2]
[327489924,1716123043767,-500.0,0.00026689,2]
[327489925,1716123043777,-596.17343076,0.00026689,2]
[327489926,1716123043787,-500.0,0.00026689,2]
[327489928,1716123043798,-151.0,0.00026689,7]
[327489929,1716123043807,-154.80095,0.00026689,7]
[327489930,1716123043816,-527.70870538,0.00026689,2]
[327489931,1716123043826,-500.0,0.00026689,2]
[327489932,1716123043977,-500.0,0.00026689,2]
[327489933,1716123043988,-500.0,0.00026689,2]
[327489934,1716123043998,-151.0,0.00026689,7]
[327489935,1716123044007,-151.0,0.00026689,7]
[327489936,1716123044016,-500.0,0.00026689,2]
[327489937,1716123044027,-500.0,0.00026689,2]
[327489938,1716123044036,-250.261772,0.00026689,7]
[327489939,1716123044045,-250.261772,0.00026689,7]
[327489940,1716123044055,-500.0,0.00026689,2]
[327489941,1716123044064,-505.80303537,0.00026689,2]
[327489942,1716123044073,-500.0,0.00026689,2]
[327489943,1716123044082,-500.0,0.00026689,2]
[327489944,1716123044091,-250.261772,0.00026689,7]
[327489945,1716123044101,-500.0,0.00026689,2]
[327489946,1716123044110,-250.261772,0.00026689,7]
[327489947,1716123044119,-532.27773451,0.00026689,2]
[327489949,1716123044128,-500.0,0.00026689,2]
[327489951,1716123044137,-500.0,0.00026689,2]
[327489953,1716123044147,-500.0,0.00026689,2]
[327489955,1716123044156,-504.39728566,0.00026689,2]
[327489957,1716123044165,-500.0,0.00026689,2]
[327489959,1716123044174,-497.97295661,0.00026689,2]
[327489961,1716123044183,-500.04137303,0.00026689,2]
[327489962,1716123044192,-500.0,0.00026689,2]
[327489963,1716123044202,-527.99856381,0.00026689,2]
[327489964,1716123044211,-500.0,0.00026689,2]
[327489965,1716123044221,-526.50496459,0.00026689,2]
[327489966,1716123044230,-500.0,0.00026689,2]
[327489967,1716123044240,-163.715433,0.00026689,7]
[327489968,1716123044250,-523.54080545,0.00026689,2]
[327489969,1716123044260,-151.0,0.00026689,7]
[327489970,1716123044270,-529.18389319,0.00026689,2]
[327489971,1716123044279,-151.0,0.00026689,7]
[327489972,1716123044289,-500.0,0.00026689,2]
[327489973,1716123044298,-542.25118155,0.00026689,2]
[327489974,1716123044307,-151.0,0.00026689,7]
[327489975,1716123044317,-151.0,0.00026689,7]
[327489976,1716123044325,-500.0,0.00026689,2]
[327489977,1716123044335,-151.0,0.00026689,7]
[327489978,1716123044344,-151.0,0.00026689,7]
[327489979,1716123044352,-500.0,0.00026689,2]
[327489980,1716123044362,-500.0,0.00026689,2]
[327489981,1716123044371,-500.0,0.00026689,2]
[327489982,1716123044380,-500.0,0.00026689,2]
[327489983,1716123044389,-500.0,0.00026689,2]
[327489984,1716123044398,-500.0,0.00026689,2]
[327489985,1716123044408,-500.0,0.00026689,2]
[327489986,1716123044417,-500.0,0.00026689,2]
[327489987,1716123044430,-500.0,0.00026689,2]
[327489988,1716123044439,-500.0,0.00026689,2]
[327489989,1716123044448,-500.0,0.00026689,2]
[327489990,1716123044458,-155.187533,0.00026689,7]
[327489991,1716123044468,-151.0,0.00026689,7]
[327489992,1716123044477,-151.0,0.00026689,7]
[327489993,1716123044486,-500.0,0.00026689,2]
[327489994,1716123044495,-500.0,0.00026689,2]
[327489995,1716123044508,-500.0,0.00026689,2]
[327489996,1716123044518,-151.0,0.00026689,7]
[327489997,1716123044527,-151.0,0.00026689,7]
[327489998,1716123044536,-218.54179286,0.00026689,2]
[327489999,1716123044545,-500.0,0.00026689,2]
[327490000,1716123044555,-151.0,0.00026689,7]
[327490001,1716123044564,-151.0,0.00026689,7]
[327490002,1716123044574,-500.0,0.00026689,2]
[327490003,1716123044583,-151.0,0.00026689,7]
[327490004,1716123044592,-151.0,0.00026689,7]
[327490005,1716123044601,-500.0,0.00026689,2]
[327490006,1716123044611,-509.09111136,0.00026689,2]
[327490007,1716123044620,-500.0,0.00026689,2]
[327490008,1716123044630,-500.0,0.00026689,2]
[327490009,1716123044639,-900.42,0.00026689,2]
[327490010,1716123044648,-1751.12,0.00026689,2]
[327490011,1716123044657,-2005.12,0.00026689,2]
[327490012,1716123044667,-511.60933474,0.00026689,2]
[327490013,1716123044677,-585.46283968,0.00026689,2]
[327490014,1716123044686,-1462.07,0.00026689,2]
[327490015,1716123044695,-151.0,0.00026689,7]
[327490016,1716123044705,-500.0,0.00026689,2]
[327490017,1716123044716,-151.0,0.00026689,7]
[327490018,1716123044725,-151.0,0.00026689,7]
[327490019,1716123044734,-151.0,0.00026689,7]
[327490020,1716123044743,-500.0,0.00026689,2]
[327490021,1716123044752,-500.0,0.00026689,2]
[327490022,1716123044762,-500.0,0.00026689,2]
[327490023,1716123044771,-812.16,0.00026689,2]
[327490024,1716123044780,-1149.32,0.00026689,2]
[327490025,1716123044790,-500.0,0.00026689,2]
[327490026,1716123044799,-500.0,0.00026689,2]
[327490027,1716123044808,-500.0,0.00026689,2]